bitfinex/quotes_ETHUSD_20220309
["timestamp","ask_amount","ask_price","bid_price","bid_amount"]
[1646818547926,0.50209284,2756.9,2756.7,0.90682]
[1646818548830,0.5,2756.9,2756.7,11.96682]
[1646818549025,0.5,2756.9,2756.7,12.41182]
[1646818549225,0.00200251,2756.9,2756.7,12.41182]
[1646818549625,0.029168,2757.2,2756.9,11.06]
[1646818549930,0.029168,2757.2,2757.0,1.81321]
[1646818550191,1.0932092,2758.1,2757.0,1.81321]
[1646818550192,3.0,2758.8,2758.6,15.31940559]
[1646818550388,0.48965605,2758.9,2758.6,13.72804759]
[1646818550587,1.0,2758.8,2758.6,14.63473759]
[1646818550791,1.07018652,2759.3,2758.7,0.90668]
[1646818550990,1.49182934,2759.2,2758.7,0.90668]
[1646818551188,1.93682934,2759.2,2758.7,0.90668]
[1646818551388,2.95322442,2759.7,2759.1,5.31336]
[1646818551589,0.5,2759.2,2759.1,5.61336]
[1646818551790,1.0474958,2759.7,2759.1,5.61336]
[1646818551989,0.445,2759.6,2759.1,5.61336]
[1646818552190,0.1812,2759.5,2759.1,5.61336]
[1646818552393,0.445,2760.2,2759.1,5.61336]
[1646818552693,0.445,2760.2,2759.1,9.11336]
[1646818552891,0.00222619,2759.5,2759.2,3.0]
[1646818553093,2.4369,2761.0,2759.2,3.0]
[1646818553094,0.445,2761.0,2760.2,1.03159818]
[1646818553296,2.9054266,2761.1,2760.2,5.43766818]
[1646818553297,0.54950252,2761.1,2760.2,5.43766818]
[1646818553492,0.99450252,2761.1,2760.2,5.43766818]
[1646818553924,0.99450252,2761.1,2760.2,3.5]
[1646818554326,0.5,2760.8,2760.2,3.5]
[1646818554923,0.99450252,2761.1,2760.2,3.5]
[1646818555140,0.99450252,2761.1,2760.7,3.5]
[1646818555328,0.99450252,2761.1,2760.7,1.11396311]
[1646818555529,0.99450252,2761.1,2760.3,0.3]
[1646818555530,3.71321062,2761.1,2760.3,0.3]
[1646818555730,0.5,2760.8,2760.1,3.01819]
[1646818555934,1.3514669,2760.7,2760.1,2.71819]
[1646818556326,3.5,2760.6,2760.1,2.71819]
[1646818556529,1.62551262,2760.5,2759.5,0.1811]
[1646818556729,3.5,2760.4,2759.6,3.5]
[1646818556937,0.9064645,2760.3,2759.6,3.5]
[1646818557129,5.7580381,2760.2,2759.6,3.5]
[1646818557329,6.7580381,2760.2,2759.6,3.5]
[1646818557581,1.19499332,2760.1,2759.6,3.5]
[1646818557778,1.19499332,2760.1,2759.3,3.62501]
[1646818557779,3.945,2760.0,2759.9,3.5]
[1646818558280,4.945,2760.0,2759.9,3.5]
[1646818561335,4.945,2760.0,2759.8,2.11288]
[1646818561521,3.5,2759.9,2759.8,2.11288]
[1646818561722,4.945,2759.9,2759.7,0.90653]
[1646818561921,3.5,2759.8,2759.1,0.1811]
[1646818562121,0.97597697,2759.4,2759.0,0.029168]
[1646818562323,3.945,2759.3,2759.0,0.90665]
[1646818562521,0.445,2759.3,2759.0,0.90665]
[1646818562721,1.445,2759.3,2759.0,0.90665]
[1646818562922,0.445,2759.3,2759.0,0.90665]
[1646818563121,3.945,2759.3,2759.0,1.20665]
[1646818563324,1.445,2759.3,2759.2,3.5]
[1646818563725,0.445,2759.3,2759.2,3.5]
[1646818564423,3.945,2759.3,2759.2,3.5]
[1646818564623,0.445,2759.3,2759.2,3.5]
[1646818564824,1.445,2759.3,2759.2,3.5]
[1646818565080,0.445,2759.3,2759.2,3.5]
[1646818566486,3.945,2759.3,2759.2,3.5]
[1646818566885,4.945,2759.3,2759.2,3.5]
[1646818567886,4.945,2759.3,2758.9,3.62576]
[1646818568087,4.945,2759.3,2758.1,1.99761113]
[1646818568088,0.9068261,2759.1,2758.1,1.99761113]
[1646818568287,0.445,2759.0,2758.1,1.81641113]
[1646818568487,0.745,2759.0,2757.9,0.00296113]
[1646818568932,1.67416088,2759.0,2758.5,0.90687]
[1646818569730,0.745,2759.0,2758.5,0.90687]
[1646818569931,0.745,2759.0,2758.7,3.5]
[1646818570132,0.745,2759.0,2758.8,1.81355]
[1646818570334,0.745,2759.0,2758.8,0.22220343]
[1646818570335,0.445,2759.0,2758.8,0.22220343]
[1646818570535,0.445,2759.0,2758.8,0.52220343]
[1646818570937,0.445,2759.0,2758.8,0.22220343]
[1646818571335,0.445,2759.0,2758.8,3.72220343]
[1646818571539,0.445,2759.0,2758.8,4.02220343]
[1646818572037,1.35002581,2758.9,2758.8,4.02220343]
[1646818572235,1.79502581,2758.9,2758.8,4.02220343]
[1646818572437,2.29502581,2758.9,2758.8,4.02220343]
[1646818572674,1.79502581,2758.9,2758.8,4.02220343]
[1646818573080,2.29502581,2758.9,2758.8,3.8]
[1646818575882,1.85002581,2758.9,2758.8,3.8]
[1646818576337,0.87631153,2759.8,2758.8,3.8]
[1646818576527,0.87631153,2759.8,2759.1,3.5]
[1646818577129,1.32131153,2759.9,2759.1,3.8]
[1646818577529,1.32131153,2759.9,2759.2,2.7193]
[1646818577730,0.87631153,2759.8,2759.2,2.7193]
[1646818578031,1.32131153,2759.9,2759.2,2.7193]
[1646818578429,1.32131153,2759.9,2759.3,1.06316624]
[1646818578629,1.32131153,2759.9,2759.5,3.5]
[1646818578830,0.18879636,2760.1,2759.5,3.5]
[1646818578831,1.06510789,2760.1,2759.5,3.5]
[1646818579131,0.87631153,2760.1,2759.5,3.8]
[1646818579529,0.5,2759.8,2759.5,3.8]
[1646818580383,0.00221525,2759.8,2759.6,2.0]
[1646818580584,0.00221525,2759.8,2759.7,5.67483]
[1646818580782,0.00221525,2759.8,2759.7,5.97483]
[1646818581081,3.5,2760.6,2760.0,0.9061]
[1646818581282,5.36521994,2760.8,2760.0,0.9061]
[1646818581482,5.36521994,2760.8,2760.0,3.62441]
[1646818581681,4.83269454,2760.8,2760.2,2.11436914]
[1646818581887,1.77769454,2760.9,2760.2,2.11436914]
[1646818582083,1.33269454,2761.0,2760.3,0.029168]
[1646818582281,0.445,2761.1,2760.3,0.029168]
[1646818582282,1.77769454,2761.1,2760.3,0.029168]
[1646818582483,1.77230936,2761.4,2760.4,1.26866]
[1646818582484,1.33269454,2761.2,2760.4,1.26866]
[1646818582684,4.83269454,2761.3,2760.7,0.90592]
[1646818582882,1.33269454,2761.3,2760.7,1.84915336]
[1646818583083,1.33269454,2761.4,2760.8,3.0]
[1646818583284,0.1889594,2761.8,2760.9,0.029168]
[1646818583285,1.33269454,2761.5,2760.9,0.029168]
[1646818583484,1.96126876,2761.8,2761.1,0.934748]
[1646818583485,1.33269454,2761.8,2761.1,0.934748]
[1646818583682,1.33269454,2761.9,2761.2,3.8626]
[1646818584125,1.33269454,2762.0,2761.3,4.00066187]
[1646818584325,7.21769904,2762.1,2761.3,4.30066187]
[1646818584529,3.71769904,2762.1,2761.3,4.30066187]
[1646818584729,2.3850045,2762.1,2761.7,0.029168]
[1646818585130,3.5,2762.5,2761.7,0.029168]
[1646818585329,4.83269454,2762.8,2761.9,0.3626]
[1646818585529,0.00883753,2762.3,2762.0,2.202818]
[1646818585734,0.00883753,2762.3,2762.1,3.5]
[1646818586030,0.5,2762.2,2762.1,1.11550328]
[1646818586430,4.0,2762.2,2762.1,1.11550328]
[1646818586630,0.5,2762.2,2762.1,1.11550328]
[1646818587230,0.945,2762.2,2762.1,1.11550328]
[1646818588077,1.60627121,2762.2,2762.1,1.11550328]
[1646818588278,0.945,2762.2,2762.1,1.11550328]
[1646818588479,0.5,2762.2,2762.1,1.11550328]
[1646818588877,0.66127121,2762.6,2762.1,1.11550328]
[1646818589077,0.00220971,2762.3,2762.1,2.95576128]
[1646818589277,0.67010874,2762.7,2762.1,2.95576128]
[1646818589680,0.67010874,2762.7,2762.1,3.13676128]
[1646818589976,0.66127121,2762.6,2762.1,3.13676128]
[1646818590180,0.66127121,2762.7,2762.2,1.81109]
[1646818590382,0.66127121,2762.7,2762.2,0.2217374]
[1646818590982,0.66127121,2762.8,2762.2,0.2217374]
[1646818591185,1.10627121,2762.8,2762.2,0.2217374]
[1646818592632,0.5,2762.3,2762.2,0.2217374]
[1646818593628,0.5,2762.3,2762.1,2.92659328]
[1646818593829,5.40798419,2762.4,2762.1,2.92659328]
[1646818594432,2.35298419,2762.4,2762.1,2.92659328]
[1646818594734,1.35078,2762.4,2762.1,2.92659328]
[1646818594929,1.35298419,2762.4,2762.1,2.92659328]
[1646818595780,0.5,2762.2,2762.1,2.92659328]
[1646818596879,1.700856,2762.2,2762.1,2.92659328]
[1646818598681,5.200856,2762.2,2762.1,2.92659328]
[1646818598925,1.700856,2762.2,2762.1,2.92659328]
[1646818599125,2.700856,2762.2,2762.1,2.92659328]
[1646818599325,1.700856,2762.2,2762.1,2.92659328]
[1646818599524,2.700856,2762.2,2762.1,2.92659328]
[1646818599725,1.700856,2762.2,2762.1,2.92659328]
[1646818599928,2.700856,2762.2,2762.1,2.92659328]
[1646818600328,2.200856,2762.2,2762.1,2.92659328]
[1646818600730,1.700856,2762.2,2762.1,2.92659328]
[1646818602776,0.5,2762.2,2762.1,2.92659328]
[1646818603777,0.00183331,2762.3,2762.1,2.92659328]
[1646818603977,1.20044512,2762.3,2762.1,2.92659328]
[1646818604379,0.5,2762.2,2762.1,2.94848015]
[1646818605585,1.69828737,2762.2,2762.1,2.94848015]
[1646818606085,2.14328737,2762.2,2762.1,2.94848015]
[1646818606334,2.14328737,2762.2,2762.1,0.56428798]
[1646818606525,1.64328737,2762.2,2762.1,0.56428798]
[1646818608327,1.64328737,2762.2,2762.1,4.06428798]
[1646818608931,2.14328737,2762.2,2762.1,4.06428798]
[1646818610384,2.14328737,2762.2,2762.1,0.56428798]
[1646818610580,1.0,2762.5,2762.0,0.18044159]
[1646818610581,0.00182546,2762.3,2762.0,0.18044159]
[1646818611080,0.00182546,2762.3,2762.0,0.17646083]
[1646818611281,0.00182546,2762.3,2762.1,1.81109]
[1646818611485,0.445,2762.6,2762.1,1.81109]
[1646818612080,0.5,2762.2,2762.1,1.81109]
[1646818612281,0.5,2762.2,2762.1,5.31109]
[1646818613927,0.5,2762.2,2762.1,3.5]
[1646818616633,0.5,2762.2,2762.0,0.3]
[1646818616835,4.50208405,2762.3,2762.0,0.3]
[1646818617033,0.5,2762.0,2761.8,1.81124]
[1646818617434,3.945,2762.3,2761.8,1.81124]
[1646818617677,0.5,2761.9,2761.8,1.81124]
[1646818619078,0.5,2761.9,2761.8,8.31124]
[1646818619679,0.00178776,2762.2,2761.9,4.81098]
[1646818619883,0.00715057,2762.4,2762.0,0.9055]
[1646818620279,0.00178776,2762.2,2762.0,1.2055]
[1646818620481,0.5,2762.1,2762.0,1.2055]
[1646818622329,0.5,2762.1,2762.0,0.3]
[1646818622726,0.5,2762.1,2761.8,5.31124]
[1646818622928,0.00183101,2762.2,2761.8,5.31124]
[1646818623128,0.5,2762.1,2761.8,5.31124]
[1646818623927,0.5,2762.0,2761.9,0.98470354]
[1646818624128,0.00183097,2762.2,2761.9,0.98470354]
[1646818624329,0.5,2762.0,2761.9,0.98470354]
[1646818624529,0.5,2762.0,2761.9,3.98470354]
[1646818624728,0.66127121,2762.5,2762.0,4.0]
[1646818625077,0.00182472,2762.2,2762.0,7.5]
[1646818625480,0.00182472,2762.2,2762.0,7.8]
[1646818625680,0.66127121,2762.4,2762.0,7.8]
[1646818625886,0.66127121,2762.4,2762.0,8.70546]
[1646818626186,0.5,2762.4,2762.3,4.81021]
[1646818626382,3.5,2763.2,2762.5,4.5]
[1646818626582,0.66625408,2762.9,2762.7,3.0]
[1646818626982,3.5,2763.3,2762.6,1.18025528]
[1646818626983,0.88833878,2763.0,2762.6,1.18025528]
[1646818627186,0.88833878,2763.1,2762.6,5.38531528]
[1646818627884,0.88833878,2763.1,2762.6,4.234228]
[1646818628083,2.33269454,2763.3,2762.7,3.5]
[1646818628084,0.88833878,2762.8,2762.7,3.5]
[1646818628287,3.5,2762.8,2762.7,3.5]
[1646818628589,3.5,2762.8,2761.8,3.0]
[1646818628590,3.945,2762.8,2761.5,3.0]
[1646818628839,0.88979205,2762.4,2761.9,0.029168]
[1646818629125,4.71439173,2762.6,2761.6,3.831328]
[1646818629126,4.83479205,2762.3,2761.6,3.831328]
[1646818629325,0.445,2762.2,2761.6,3.831328]
[1646818629527,0.5,2762.0,2761.6,3.831328]
[1646818629726,0.5,2762.0,2761.8,0.90569]
[1646818630333,4.71843862,2762.6,2761.8,3.90569]
[1646818630530,4.71843862,2762.6,2761.8,4.15671565]
[1646818630531,0.029168,2762.4,2761.8,4.15671565]
[1646818630730,1.00675261,2762.3,2761.8,4.15671565]
[1646818630933,0.99372484,2762.2,2761.9,0.47561261]
[1646818631134,0.5,2762.0,2761.9,0.47561261]
[1646818631333,4.71843862,2762.6,2761.9,0.47561261]
[1646818631730,4.71843862,2762.6,2761.8,4.45671565]
[1646818632232,4.71843862,2762.6,2761.9,3.62163]
[1646818632431,4.71843862,2762.6,2761.9,3.92163]
[1646818632675,0.5,2762.0,2761.9,3.92163]
[1646818632877,4.27343862,2762.6,2762.0,2.0]
[1646818633477,4.27343862,2762.6,2762.0,4.34588565]
[1646818634379,4.27343862,2762.6,2761.9,3.92163]
[1646818634578,0.5,2762.0,2761.9,3.62163]
[1646818634783,4.27343862,2762.6,2761.9,3.01621]
[1646818634983,4.27343862,2762.6,2761.9,2.71621]
[1646818635684,3.38364657,2762.6,2761.9,2.71621]
[1646818635885,4.27343862,2762.6,2761.9,2.71621]
[1646818636086,3.27343862,2762.6,2761.9,2.71621]
[1646818636339,4.27343862,2762.6,2761.9,2.71621]
[1646818636526,3.27343862,2762.6,2761.9,2.71621]
[1646818636726,0.88979205,2762.5,2761.9,2.71621]
[1646818636925,0.6674077,2762.3,2761.9,2.71621]
[1646818637126,0.6674077,2762.2,2762.1,0.90538]
[1646818637728,1.1674077,2762.2,2762.1,0.90538]
[1646818637927,0.6674077,2762.2,2762.1,0.90538]
[1646818638528,4.1674077,2762.2,2761.9,2.71621]
[1646818638730,4.1674077,2762.2,2761.6,0.1809]
[1646818638731,0.945,2762.1,2761.6,0.1809]
[1646818638934,0.66750314,2761.9,2761.6,0.1809]
[1646818639328,0.66750314,2761.8,2761.6,0.1809]
[1646818640480,0.66750314,2762.0,2761.6,0.1809]
[1646818640883,0.66750314,2762.0,2761.6,2.52678565]
[1646818641281,0.66750314,2762.0,2761.6,0.1809]
[1646818641882,0.66750314,2761.9,2761.6,0.1809]
[1646818642082,0.66750314,2761.9,2761.7,0.90552]
[1646818642283,4.445,2762.1,2761.7,0.90552]
[1646818642284,0.66750314,2762.0,2761.7,0.90552]
[1646818642485,0.66750314,2762.0,2761.8,0.90556]
[1646818643931,0.5,2762.1,2761.8,0.90556]
[1646818643932,1.16750314,2762.1,2761.8,0.90556]
[1646818644136,0.66750314,2762.0,2761.8,0.90556]
[1646818644332,1.16750314,2762.1,2761.8,0.90556]
[1646818644929,0.66750314,2762.0,2761.8,0.90556]
[1646818645135,1.16750314,2762.1,2761.8,0.90556]
[1646818645533,1.16750314,2762.1,2761.6,4.63779565]
[1646818645833,0.66750314,2761.9,2761.6,4.63779565]
[1646818648183,0.66750314,2761.9,2761.6,4.63093355]
[1646818648982,0.66750314,2761.8,2761.6,4.63093355]
[1646818649683,0.66750314,2761.9,2761.6,4.63093355]
[1646818650387,1.945,2762.1,2761.6,4.63093355]
[1646818650388,0.66750314,2762.0,2761.6,4.63093355]
[1646818650689,0.66750314,2762.0,2761.6,3.0416079]
[1646818651086,0.66750314,2762.0,2761.7,0.90551]
[1646818651338,0.66750314,2761.9,2761.8,1.81101]
[1646818651730,1.62977491,2761.9,2761.8,1.81101]
[1646818652134,0.96227177,2761.9,2761.8,4.15689565]
[1646818652934,0.96227177,2761.9,2761.8,7.65689565]
[1646818653134,0.96227177,2761.9,2761.8,8.17749606]
[1646818653535,0.66750314,2762.2,2761.9,4.5]
[1646818654133,0.66750314,2762.2,2762.1,2.34588565]
[1646818654635,1.16750314,2762.2,2762.1,2.34588565]
[1646818656987,0.5,2762.2,2762.1,2.34588565]
[1646818659124,0.5,2762.2,2762.1,2.34476765]
[1646818659525,1.16750314,2762.2,2762.1,2.34476765]
[1646818661632,0.5,2762.2,2762.1,2.34476765]
[1646818662677,1.16750314,2762.2,2762.1,2.34476765]
[1646818662878,0.5,2762.2,2762.0,3.55007765]
[1646818663077,1.16825022,2762.2,2762.0,3.55007765]
[1646818663277,0.66825022,2762.1,2762.0,3.55007765]
[1646818663477,1.16825022,2762.1,2762.0,3.55007765]
[1646818663676,0.5,2762.1,2762.0,3.55007765]
[1646818665889,1.16825022,2762.1,2762.0,0.90531]
[1646818666083,1.16825022,2762.1,2761.8,4.52692]
[1646818666084,4.86396005,2762.1,2761.8,4.52692]
[1646818666340,0.66834752,2761.9,2761.8,4.52692]
[1646818666828,0.66834752,2762.0,2761.8,4.52692]
[1646818667229,0.69751552,2762.1,2761.9,2.34476765]
[1646818667435,0.66834752,2762.1,2761.9,2.34476765]
[1646818667634,0.66834752,2762.2,2761.9,2.34476765]
[1646818668031,0.5,2762.0,2761.9,2.34476765]
[1646818670784,0.5,2762.0,2761.9,0.75550671]
[1646818671185,1.16834752,2762.0,2761.9,0.75550671]
[1646818672789,0.5,2762.0,2761.9,1.70294185]
[1646818672988,0.5,2762.0,2761.9,0.75550671]
[1646818673589,0.5,2762.0,2761.9,1.33908497]
[1646818673829,1.40119099,2762.0,2761.9,1.33908497]
[1646818675242,2.06953851,2762.0,2761.9,1.33908497]
[1646818675836,1.40119099,2762.0,2761.9,1.33908497]
[1646818676433,0.66834752,2762.2,2762.0,3.90535]
[1646818676836,0.66873416,2762.3,2762.2,5.5]
[1646818677037,0.91896005,2762.5,2762.2,10.8105]
[1646818677038,0.66873416,2762.5,2762.2,10.8105]
[1646818677234,3.05238073,2762.6,2762.2,7.3105]
[1646818677433,3.05238073,2762.6,2762.5,0.75550671]
[1646818678488,2.38364657,2762.6,2762.5,0.75550671]
[1646818678686,3.05238073,2762.6,2762.5,0.75550671]
[1646818678888,2.38364657,2762.6,2762.5,0.75550671]
[1646818679090,2.88364657,2762.6,2762.5,0.75550671]
[1646818679892,3.55238073,2762.6,2762.5,0.75550671]
[1646818680502,3.55238073,2762.6,2762.4,2.11053]
[1646818680698,3.55238073,2762.6,2762.3,1.05550671]
[1646818680894,0.66873416,2762.5,2762.1,1.66080671]
[1646818681094,0.5,2762.4,2762.1,5.16080671]
[1646818681349,0.5,2762.4,2762.1,1.66080671]
[1646818681538,0.5,2762.2,2762.1,1.66080671]
[1646818684947,0.5,2762.2,2761.4,2.9044]
[1646818684948,4.474168,2762.2,2761.5,0.75550671]
[1646818685187,4.474168,2762.2,2761.4,2.9044]
[1646818685188,0.5,2761.8,2761.4,2.9044]
[1646818685390,0.445,2761.7,2761.3,0.75550671]
[1646818685593,0.029168,2761.6,2761.3,2.56699671]
[1646818685790,0.474168,2761.6,2761.3,2.56699671]
[1646818686992,0.974168,2761.6,2761.3,2.56699671]
[1646818687392,1.0,2761.4,2761.3,2.56699671]
[1646818688197,0.99879421,2761.4,2761.3,2.56699671]
[1646818690533,1.0,2761.5,2761.3,2.56699671]
[1646818690738,1.0,2761.5,2761.3,4.37826671]
[1646818691136,1.0,2761.5,2761.3,4.67826671]
[1646818691137,0.11947729,2761.5,2761.3,4.67826671]
[1646818691334,0.5,2761.6,2761.3,4.67826671]
[1646818691735,0.5,2761.6,2761.5,0.75550671]
[1646818696433,0.5,2761.6,2761.5,1.39840708]
[1646818697035,1.34210545,2761.6,2761.5,1.39840708]
[1646818699040,0.029168,2762.0,2761.6,6.0]
[1646818699239,0.66831493,2762.3,2761.8,1.81082]
[1646818699240,0.029168,2762.3,2761.8,1.81082]
[1646818699838,0.029168,2762.3,2762.2,0.75550671]
[1646818700089,3.0519615,2762.6,2762.2,1.63403319]
[1646818700291,3.0519615,2762.6,2762.2,3.44476319]
[1646818700292,0.029168,2762.5,2762.2,3.44476319]
[1646818700493,0.5,2762.3,2762.2,3.44476319]
[1646818701294,0.5,2762.3,2762.2,2.56623671]
[1646818706040,0.5,2762.3,2762.1,1.96087671]
[1646818706239,0.5,2762.3,2762.1,0.75550671]
[1646818706240,0.029168,2762.2,2762.1,0.75550671]
[1646818706638,0.529168,2762.2,2762.1,0.75550671]
[1646818709092,0.529168,2762.2,2761.9,0.75550671]
[1646818709289,0.5,2762.0,2761.9,0.75550671]
[1646818709489,0.529168,2762.0,2761.9,0.75550671]
[1646818710092,0.445,2762.3,2761.9,0.75550671]
[1646818710995,0.5,2762.0,2761.9,0.75550671]
[1646818711194,0.5,2762.0,2761.8,3.07485547]
[1646818711439,0.5,2762.0,2761.8,2.03509714]
[1646818711642,0.5,2762.0,2761.8,1.73509714]
[1646818711840,0.5,2762.0,2761.8,2.03509714]
[1646818712239,0.445,2762.3,2761.8,1.2056]
[1646818712439,0.98780335,2762.3,2761.8,0.9056]
[1646818713241,0.5,2761.9,2761.8,0.9056]
[1646818713438,0.98780335,2762.3,2761.8,0.9056]
[1646818714038,0.98780335,2762.3,2761.8,0.8556]
[1646818714242,0.5,2761.9,2761.8,0.8556]
[1646818714440,0.98780335,2762.3,2761.8,5.3556]
[1646818715193,0.5,2761.9,2761.8,0.8556]
[1646818715392,0.98780335,2762.3,2761.8,0.8556]
[1646818715993,0.5,2761.9,2761.8,0.8556]
[1646818716194,0.98780335,2762.3,2761.8,3.3556]
[1646818716394,0.445,2762.3,2761.8,3.3556]
[1646818716799,0.5,2761.9,2761.8,3.3556]
[1646818716997,0.445,2762.3,2761.8,0.8556]
[1646818717596,0.5,2761.9,2761.8,0.8556]
[1646818717796,0.445,2762.3,2761.8,0.8556]
[1646818717996,1.11331493,2762.3,2761.8,0.8556]
[1646818718396,1.11331493,2762.3,2761.6,0.3]
[1646818718596,0.66831493,2762.2,2761.6,0.3]
[1646818718846,0.445,2762.1,2761.4,1.81119]
[1646818719039,0.5,2761.8,2761.5,0.6919156]
[1646818719239,0.445,2762.1,2761.5,0.6919156]
[1646818720038,0.66831493,2762.2,2761.5,0.6919156]
[1646818720240,0.5,2761.6,2761.5,0.6919156]
[1646818720441,0.66831493,2762.2,2761.5,0.6919156]
[1646818720643,0.445,2762.1,2761.6,0.90559]
[1646818720843,1.20068511,2762.3,2761.6,1.20559]
[1646818720844,0.445,2762.0,2761.6,1.20559]
[1646818721243,1.20068511,2762.3,2761.6,1.20559]
[1646818721444,0.445,2762.2,2761.6,1.20559]
[1646818722045,0.53237018,2762.3,2761.6,1.20559]
[1646818722241,0.66831493,2762.4,2761.6,3.20559]
[1646818723291,3.38364657,2762.6,2761.7,4.5]
[1646818723492,3.38364657,2762.6,2761.9,1.81091]
[1646818723691,2.38364657,2762.6,2761.9,1.81091]
[1646818723891,3.38364657,2762.6,2761.9,1.81091]
[1646818724098,2.38364657,2762.6,2761.9,1.81091]
[1646818724295,3.38364657,2762.6,2761.9,1.81091]
[1646818724496,2.38364657,2762.6,2761.9,1.81091]
[1646818724803,3.38364657,2762.6,2761.9,1.81091]
[1646818725002,2.38364657,2762.6,2761.9,1.81091]
[1646818725197,3.38364657,2762.6,2761.9,1.81091]
[1646818725397,2.38364657,2762.6,2761.9,1.81091]
[1646818725599,3.38364657,2762.6,2761.9,1.81091]
[1646818725798,2.38364657,2762.6,2762.0,1.08231063]
[1646818726000,3.38364657,2762.6,2762.0,1.08231063]
[1646818727665,2.38364657,2762.6,2762.0,1.08231063]
[1646818728870,2.38364657,2762.6,2762.0,2.89328063]
[1646818729270,2.38364657,2762.6,2762.0,3.19328063]
[1646818731497,0.88979205,2763.0,2762.3,6.0]
[1646818731689,1.21,2763.2,2762.3,6.0]
[1646818731690,0.88979205,2763.2,2762.3,6.0]
[1646818731891,0.00180652,2762.8,2762.3,6.0]
[1646818732091,1.44369667,2763.2,2762.4,6.0]
[1646818732292,1.44369667,2763.2,2762.5,1.81039]
[1646818732492,1.44369667,2763.2,2762.5,0.22159173]
[1646818732493,0.55390462,2763.2,2762.5,0.22159173]
[1646818733092,0.55390462,2763.2,2762.5,1.12679173]
[1646818733293,0.66567331,2763.0,2762.5,1.12679173]
[1646818733593,0.52947244,2763.2,2762.5,7.12679173]
[1646818733860,0.88979205,2763.3,2762.6,2.5]
[1646818734261,1.44094207,2763.3,2762.6,2.5]
[1646818735060,1.44094207,2763.3,2762.5,2.37310625]
[1646818735268,0.445,2763.2,2762.5,2.07310625]
[1646818736668,0.00217235,2763.0,2762.5,2.07310625]
[1646818736872,1.44094207,2763.3,2762.6,4.0]
[1646818737068,0.55115002,2763.3,2762.6,4.0]
[1646818737268,0.445,2763.2,2762.6,4.0]
[1646818739192,0.66719864,2763.1,2762.7,0.81484604]
[1646818739492,0.66719864,2763.1,2762.7,1.72002604]
[1646818739693,0.66719864,2763.0,2762.8,1.71996604]
[1646818739895,0.55115002,2763.3,2762.9,4.0]
[1646818740092,0.66704703,2763.2,2762.9,4.0]
[1646818741537,0.66921395,2763.2,2762.8,0.90512]
[1646818741737,0.66921395,2763.2,2762.7,0.90518]
[1646818741937,0.66921395,2763.2,2762.8,4.31466308]
[1646818741938,0.00216692,2763.2,2762.8,4.31466308]
[1646818742142,0.00866629,2763.6,2763.0,1.81019]
[1646818742444,0.88979205,2763.6,2763.0,1.81019]
[1646818742641,0.88979205,2763.6,2763.0,2.11019]
[1646818742642,1.43956948,2763.6,2763.0,2.11019]
[1646818742843,0.54977743,2763.6,2763.0,2.11019]
[1646818743342,0.6659358,2763.4,2763.0,2.11019]
[1646818743746,3.5,2763.3,2763.0,2.11019]
[1646818743949,3.5,2763.3,2763.0,0.3]
[1646818743950,1.1109358,2763.3,2763.0,0.3]
[1646818744147,1.1109358,2763.3,2762.5,0.90541]
[1646818744148,0.6659358,2763.2,2762.5,0.90541]
[1646818744347,0.445,2763.1,2762.5,1.20541]
[1646818744545,1.1109358,2763.1,2762.5,0.90541]
[1646818744947,4.1659358,2763.0,2762.3,3.05202]
[1646818745193,0.445,2762.9,2762.3,3.05202]
[1646818745594,0.445,2762.9,2762.3,1.81082]
[1646818745998,3.5,2762.8,2762.3,1.81082]
[1646818746197,0.445,2762.7,2762.0,3.32191]
[1646818746398,3.5,2762.6,2762.0,0.90561]
[1646818746597,0.445,2762.5,2762.0,0.90561]
[1646818747096,0.445,2762.5,2761.9,2.749]
[1646818747497,0.445,2762.5,2761.9,0.00424459]
[1646818748301,3.5,2762.4,2761.9,0.00424459]
[1646818748499,0.445,2762.3,2761.7,4.6435]
[1646818748697,3.5,2762.2,2761.9,0.00424458]
[1646818748945,0.445,2762.1,2761.9,0.00424458]
[1646818749548,0.445,2762.1,2761.6,2.38334166]
[1646818749947,0.445,2762.1,2761.9,0.00424466]
[1646818750350,0.445,2762.1,2761.9,0.90974466]
[1646818750546,4.5,2762.6,2762.0,2.0]
[1646818750750,0.445,2762.5,2762.0,2.0]
[1646818753388,0.6659358,2762.7,2762.0,2.0]
[1646818753599,0.6659358,2762.9,2762.2,1.81056]
[1646818753789,0.6659358,2763.0,2762.2,1.81056]
[1646818753988,0.6659358,2762.9,2762.2,1.81056]
[1646818754391,0.6659358,2763.0,2762.2,1.81056]
[1646818755195,0.445,2763.2,2762.2,1.839728]
[1646818755196,0.6659358,2763.1,2762.2,1.839728]
[1646818755393,0.89154758,2763.3,2762.5,1.839528]
[1646818755394,0.66769133,2763.3,2762.5,1.839528]
[1646818755596,0.6659358,2763.3,2762.6,3.75]
[1646818755793,0.6659358,2763.4,2763.0,1.11723009]
[1646818755994,0.6659358,2763.4,2763.0,0.17536913]
[1646818755995,0.0017556,2763.3,2763.0,0.17536913]
[1646818756747,0.6659358,2763.5,2763.0,0.17536913]
[1646818757148,0.00175592,2763.3,2763.0,0.17536913]
[1646818757950,1.21571323,2763.6,2763.0,0.17536913]
[1646818758155,0.6659358,2763.5,2763.0,0.17536913]
[1646818758455,0.00216148,2763.3,2763.0,0.17536913]
[1646818758758,0.00216148,2763.3,2762.6,2.80288]
[1646818759154,0.6659358,2763.5,2762.6,2.80288]
[1646818759555,0.00216133,2763.3,2762.6,2.80288]
[1646818759756,0.00216133,2763.3,2762.7,0.98962483]
[1646818760198,0.00216133,2763.3,2762.6,2.80288]
[1646818760400,0.445,2763.3,2762.6,1.6477]
[1646818760896,0.445,2763.3,2762.5,0.029168]
[1646818760897,0.6659358,2763.1,2762.5,0.029168]
[1646818761099,0.445,2763.0,2762.2,2.662168]